bitfinex/quotes_ETHUSD_20220227
["timestamp","ask_amount","ask_price","bid_price","bid_amount"]
[1645950653249,1.64887929,2743.2,2743.0,3.76843894]
[1645950654294,1.64297846,2743.2,2743.0,3.76843894]
[1645950654491,1.64887929,2743.2,2743.0,3.76843894]
[1645950655492,1.64297846,2743.2,2743.0,3.76843894]
[1645950655691,1.64887929,2743.2,2743.0,3.76843894]
[1645950655992,2.87246973,2743.2,2743.0,3.76843894]
[1645950656391,2.87246973,2743.2,2743.0,1.86439717]
[1645950656595,9.7665689,2743.2,2743.1,1.90404177]
[1645950656996,9.77246973,2743.2,2743.1,3.76843894]
[1645950657199,6.27246973,2743.2,2743.1,3.76843894]
[1645950657855,6.1665689,2743.2,2743.1,3.76843894]
[1645950659760,4.865,2743.1,2742.8,0.144499]
[1645950659959,3.5,2743.0,2742.8,0.144499]
[1645950661798,0.00580069,2743.0,2742.8,0.144499]
[1645950662602,4.94297846,2743.2,2742.8,0.144499]
[1645950662996,0.00580069,2743.0,2742.8,0.144499]
[1645950663399,0.00580069,2743.0,2742.9,1.19202762]
[1645950663800,4.94297846,2743.2,2742.9,1.19202762]
[1645950664203,0.00580066,2743.1,2742.9,1.19202762]
[1645950664405,4.84877912,2743.2,2742.8,0.444499]
[1645950664701,4.84877912,2743.2,2742.8,0.144499]
[1645950664910,4.84877912,2743.2,2742.9,0.531]
[1645950665355,4.84877912,2743.2,2743.0,1.31786974]
[1645950665551,4.84877912,2743.2,2743.0,1.84886974]
[1645950666358,4.84877912,2743.2,2743.1,1.27618]
[1645950666558,4.84877912,2743.2,2743.1,1.44218]
[1645950666766,4.84877912,2743.2,2743.1,0.531]
[1645950669096,4.84877912,2743.2,2743.1,0.896]
[1645950669493,4.84877912,2743.2,2743.1,0.531]
[1645950670105,4.84877912,2743.2,2743.1,0.831]
[1645950670903,4.84877912,2743.2,2743.1,1.01108108]
[1645950671903,4.84877912,2743.2,2743.1,12.51608108]
[1645950672303,4.84877912,2743.2,2743.1,2.37608108]
[1645950672503,4.84877912,2743.2,2743.1,2.196]
[1645950672747,4.84877912,2743.2,2743.1,4.696]
[1645950673246,4.84877912,2743.2,2743.1,5.696]
[1645950673850,0.0059032,2743.3,2743.1,16.836]
[1645950674052,0.02360925,2743.7,2743.4,11.505]
[1645950674252,0.02360925,2743.7,2743.5,0.531]
[1645950674452,0.02360925,2743.7,2743.5,0.831]
[1645950674649,0.00096,2744.8,2743.5,0.831]
[1645950674850,0.00096,2744.8,2744.1,1.41637942]
[1645950674851,1.53979436,2744.6,2744.1,1.41637942]
[1645950675049,1.53979436,2744.6,2743.8,0.531]
[1645950675255,0.00096,2744.5,2743.8,0.531]
[1645950675450,1.53979436,2744.6,2743.8,0.531]
[1645950675650,1.38979436,2744.6,2743.8,0.531]
[1645950675854,1.38979436,2744.6,2743.8,0.831]
[1645950676255,0.05921621,2744.7,2743.9,3.5]
[1645950676499,0.05921621,2744.7,2743.8,4.331]
[1645950676707,0.05921621,2744.7,2743.8,0.831]
[1645950676914,0.05921621,2744.7,2743.8,1.831]
[1645950677306,0.00425088,2744.4,2744.1,1.40426931]
[1645950678310,0.05921621,2744.7,2744.1,1.40426931]
[1645950678510,0.00425088,2744.4,2744.1,1.40426931]
[1645950679509,0.05921621,2744.7,2744.1,1.40426931]
[1645950679711,0.00425088,2744.4,2744.2,3.865]
[1645950679915,0.00425088,2744.4,2744.3,3.5]
[1645950680113,0.00425088,2744.4,2744.3,0.531]
[1645950680862,0.05921621,2744.7,2744.3,0.531]
[1645950681065,0.00590364,2744.5,2744.3,0.531]
[1645950681265,0.00590364,2744.5,2744.0,0.3124862]
[1645950681465,0.00590364,2744.5,2743.7,1.0]
[1645950681665,0.00590364,2744.5,2743.6,1.0]
[1645950681869,0.00590364,2744.5,2743.5,0.55]
[1645950682063,0.05921621,2744.7,2743.4,1.4480828]
[1645950682064,1.06506907,2744.3,2743.4,1.4480828]
[1645950682264,0.00560963,2744.2,2743.4,1.4480828]
[1645950682665,0.00560963,2744.2,2743.4,0.3]
[1645950682864,0.00560963,2744.2,2743.3,0.3]
[1645950683064,0.05921621,2744.7,2743.2,4.9994]
[1645950683065,0.06017621,2744.7,2743.2,4.9994]
[1645950683267,0.20587621,2744.7,2743.2,4.9994]
[1645950683463,0.00560978,2743.9,2743.2,4.9994]
[1645950683663,0.00560978,2743.9,2743.4,1.23707563]
[1645950684097,0.00560978,2743.9,2743.4,1.53707563]
[1645950684299,0.00096,2744.2,2743.4,0.3]
[1645950684499,0.00560985,2743.8,2743.3,0.6]
[1645950684700,0.00560985,2743.8,2743.3,0.531]
[1645950685299,0.00560985,2743.8,2743.4,3.5]
[1645950685501,0.00096,2744.5,2743.6,0.365]
[1645950685700,0.00096,2744.5,2743.7,0.73749754]
[1645950685906,0.0056099,2743.7,2743.5,0.531]
[1645950686704,0.36596,2744.6,2743.5,0.531]
[1645950686902,0.00565291,2743.7,2743.5,1.83584236]
[1645950687204,0.00565291,2743.7,2743.5,2.13584236]
[1645950687857,0.00096,2744.6,2743.5,0.528928]
[1645950688259,0.00565291,2743.7,2743.5,0.528928]
[1645950689060,0.00096,2744.6,2743.5,1.59055227]
[1645950689361,0.00565291,2743.7,2743.5,1.59055227]
[1645950689960,0.00565291,2743.7,2743.5,0.528928]
[1645950690362,0.00096,2744.6,2743.5,0.528928]
[1645950690563,0.00564662,2743.7,2743.4,1.00322191]
[1645950691161,0.00564662,2743.7,2743.4,0.444467]
[1645950691594,0.00096,2744.0,2743.4,0.444467]
[1645950691797,0.00564664,2743.7,2743.4,0.444467]
[1645950692797,0.00096,2744.6,2743.4,0.444467]
[1645950692997,0.00564664,2743.7,2743.4,0.444467]
[1645950693997,0.00096,2744.1,2743.4,0.444467]
[1645950694199,0.00564756,2743.7,2743.4,0.444467]
[1645950695101,0.36596,2744.6,2743.4,0.444467]
[1645950695349,0.00564756,2743.7,2743.4,0.444467]
[1645950696354,0.00096,2744.2,2743.4,0.444467]
[1645950696556,0.00564756,2743.7,2743.4,0.444467]
[1645950697556,0.00096,2744.2,2743.4,0.975467]
[1645950697757,1.06840235,2744.4,2743.4,0.975467]
[1645950697957,0.00096,2744.2,2743.4,0.975467]
[1645950698158,0.00096,2744.3,2743.4,0.975467]
[1645950698560,1.90571632,2744.6,2743.4,0.975467]
[1645950698864,1.90475632,2744.5,2743.4,0.975467]
[1645950699099,1.54071632,2744.4,2743.4,0.975467]
[1645950700103,0.00423246,2744.2,2743.6,1.27635474]
[1645950700705,0.00423246,2744.2,2743.7,0.18008108]
[1645950700902,0.00423246,2744.2,2743.6,1.27635474]
[1645950701105,1.06217716,2744.5,2743.5,0.3]
[1645950701304,0.00590356,2744.2,2743.8,0.00558503]
[1645950702304,0.00096,2744.4,2743.4,0.9982753]
[1645950702508,1.34176554,2744.0,2743.9,0.00558493]
[1645950703348,0.00590364,2744.2,2743.9,0.00558493]
[1645950703544,1.24956,2744.4,2743.4,0.9982753]
[1645950703745,1.24956,2744.4,2743.8,0.00558503]
[1645950703746,0.00590356,2744.2,2743.8,0.00558503]
[1645950704751,1.08115506,2744.3,2743.4,2.16288112]
[1645950704952,0.00686364,2744.2,2743.9,0.00558493]
[1645950705153,0.00590364,2744.2,2743.9,0.00558493]
[1645950705952,1.2486,2744.4,2743.4,1.5292753]
[1645950706154,0.00590371,2744.2,2743.9,0.00558483]
[1645950707205,1.2486,2744.4,2743.4,5.9403753]
[1645950707403,0.00590371,2744.2,2743.9,0.00558483]
[1645950708304,0.00096,2744.6,2743.7,0.531]
[1645950708505,0.00590371,2744.2,2743.9,0.00558483]
[1645950709505,0.00096,2744.5,2743.7,0.531]
[1645950709705,0.00590371,2744.2,2743.9,0.00558483]
[1645950710762,1.22442273,2744.3,2743.7,0.531]
[1645950710962,1.5456144,2744.2,2743.9,0.00558483]
[1645950711162,0.00590371,2744.2,2743.9,0.00558483]
[1645950711867,5.20597811,2744.7,2743.6,1.4420232]
[1645950712063,1.53964571,2744.6,2743.8,1.22930359]
[1645950712262,1.53964571,2744.6,2743.9,0.00558483]
[1645950712263,0.00590371,2744.2,2743.9,0.00558483]
[1645950713162,0.00096,2744.6,2743.8,0.531]
[1645950713363,0.00590371,2744.2,2743.9,0.00558483]
[1645950714298,0.00096,2744.6,2743.4,4.3514353]
[1645950714503,1.41398103,2744.3,2743.4,5.75821138]
[1645950714699,1.41398103,2744.3,2743.9,0.00558483]
[1645950714700,0.00590371,2744.2,2743.9,0.00558483]
[1645950714898,1.53970531,2744.1,2743.9,0.00558483]
[1645950715102,6.53970531,2744.1,2743.9,0.00558483]
[1645950715301,6.53970531,2744.1,2743.4,0.144467]
[1645950715302,0.00962837,2743.8,2743.4,0.144467]
[1645950715603,1.31695775,2743.6,2742.8,0.25]
[1645950715802,13.04470531,2743.5,2742.6,0.25]
[1645950716002,13.04470531,2743.5,2742.1,5.89218109]
[1645950716003,0.365,2743.3,2742.1,5.89218109]
[1645950716202,0.365,2743.1,2742.1,2.39218109]
[1645950716404,0.365,2743.1,2742.1,0.55794115]
[1645950716602,0.1458,2743.6,2742.1,0.55794115]
[1645950716603,0.5108,2743.6,2742.1,1.83423994]
[1645950716803,1.90530547,2743.5,2742.1,5.33423994]
[1645950717011,1.54030547,2743.4,2742.6,1.18854765]
[1645950717205,1.2356,2743.7,2742.6,1.18854765]
[1645950717404,1.54018016,2743.6,2742.6,1.18854765]
[1645950718254,1.54018016,2743.6,2743.0,0.00138524]
[1645950718855,3.5,2743.5,2742.6,0.73323289]
[1645950719055,1.54018016,2743.4,2742.6,0.73323289]
[1645950719256,2.776392,2743.7,2742.6,0.73323289]
[1645950719257,0.365,2743.5,2742.6,0.73323289]
[1645950719457,1.54018216,2743.4,2742.6,0.73323289]
[1645950720360,1.90518216,2743.5,2742.4,0.25]
[1645950720561,1.54018368,2743.4,2742.4,0.25]
[1645950720760,1.54018368,2743.4,2742.9,0.0015273]
[1645950720959,0.365,2743.5,2742.9,0.0015273]
[1645950721260,0.365,2743.3,2742.9,0.0015273]
[1645950721706,1.90528473,2743.2,2742.3,1.31295316]
[1645950721906,0.365,2743.4,2742.3,0.8577804]
[1645950722104,0.365,2743.2,2742.3,0.8577804]
[1645950722309,3.865,2743.2,2742.3,0.8577804]
[1645950722506,0.365,2743.2,2742.3,0.8577804]
[1645950722709,0.365,2743.2,2742.1,0.781]
[1645950722710,0.365,2743.0,2742.1,0.25]
[1645950722910,0.365,2742.8,2742.0,7.36]
[1645950723108,0.365,2742.6,2742.0,7.36]
[1645950723311,11.2858,2743.0,2741.6,0.00235921]
[1645950723312,0.365,2742.4,2741.6,0.00235921]
[1645950723709,0.365,2742.2,2741.6,1.05620807]
[1645950723907,6.6211,2742.8,2741.6,1.05620807]
[1645950724109,2.9753,2742.8,2741.8,1.37948547]
[1645950724307,2.9753,2742.8,2741.9,1.37948547]
[1645950724509,2.9753,2742.8,2741.9,0.00505359]
[1645950724709,6.0438,2743.1,2742.0,1.45378547]
[1645950724912,6.0438,2743.1,2742.9,1.19055329]
[1645950724913,4.3963,2743.1,2742.9,1.19055329]
[1645950725254,1.0788,2743.1,2742.9,1.19055329]
[1645950725445,0.1458,2743.6,2742.9,1.19055329]
[1645950725645,3.5,2743.7,2742.9,1.19055329]
[1645950725848,0.365,2743.5,2742.9,1.19055329]
[1645950726047,3.865,2743.5,2742.9,1.19055329]
[1645950726448,3.865,2743.5,2742.2,0.3]
[1645950726651,0.365,2743.3,2742.9,0.00505175]
[1645950726852,5.40534717,2743.2,2742.9,0.00505175]
[1645950727053,3.865,2743.4,2742.9,0.00505175]
[1645950727253,3.2842092,2743.7,2742.9,0.00505175]
[1645950727254,5.40536278,2743.3,2742.9,0.00505175]
[1645950727458,0.365,2743.3,2742.9,0.00505175]
[1645950727653,0.365,2743.3,2742.6,1.02092241]
[1645950727854,3.5,2743.2,2742.9,0.00465263]
[1645950728056,3.5,2743.5,2742.9,0.00465263]
[1645950728353,1.90532307,2743.4,2742.9,0.00465263]
[1645950728556,1.90532307,2743.3,2742.9,0.00465263]
[1645950728751,0.365,2743.3,2742.2,0.48605175]
[1645950729003,0.365,2743.3,2742.6,1.40323049]
[1645950729402,15.98006966,2743.6,2742.6,1.40323049]
[1645950729403,0.365,2743.5,2742.6,1.40323049]
[1645950729604,0.365,2743.3,2742.6,1.40323049]
[1645950729804,0.365,2743.3,2742.1,2.62948547]
[1645950730008,0.365,2743.1,2742.1,1.92948547]
[1645950730206,0.365,2743.1,2742.1,2.92948547]
[1645950730404,0.365,2743.1,2742.1,1.92948547]
[1645950730605,0.365,2743.1,2742.1,0.55]
[1645950730807,0.365,2743.1,2742.7,1.03992066]
[1645950731006,0.365,2743.4,2742.1,0.55]
[1645950731205,0.365,2743.2,2742.1,0.55]
[1645950731407,3.5,2743.3,2742.8,0.00555329]
[1645950731613,0.1458,2743.5,2742.8,0.00555329]
[1645950732012,0.365,2743.3,2742.2,0.531]
[1645950732213,0.365,2743.1,2742.2,0.531]
[1645950732614,0.365,2743.1,2742.5,1.40258389]
[1645950732847,0.365,2743.1,2742.2,0.531]
[1645950733047,0.365,2743.1,2742.1,0.25]
[1645950733249,3.865,2743.0,2741.8,11.89898547]
[1645950733446,3.865,2743.0,2741.8,7.36]
[1645950733647,0.365,2742.8,2741.8,8.36]
[1645950733847,11.14,2742.9,2741.8,8.36]
[1645950733848,0.365,2742.6,2741.8,8.36]
[1645950734047,11.14,2742.9,2742.0,1.20949736]
[1645950734048,3.865,2742.5,2742.0,1.20949736]
[1645950734249,0.365,2742.5,2742.0,1.20949736]
[1645950734949,0.365,2742.7,2742.0,1.20949736]
[1645950735153,0.365,2742.6,2742.0,1.20949736]
[1645950736250,0.5108,2742.9,2742.2,0.00554062]
[1645950736506,0.365,2742.7,2742.2,0.00554062]
[1645950736708,0.365,2742.6,2742.0,0.75913798]
[1645950737815,0.365,2742.8,2742.0,0.75913798]
[1645950738009,0.365,2742.6,2742.0,0.75913798]
[1645950738611,0.365,2742.4,2741.6,0.25]
[1645950738812,14.64,2742.5,2741.4,5.93938547]
[1645950738813,3.865,2742.3,2741.4,5.93938547]
[1645950739013,3.865,2742.3,2741.4,4.5599]
[1645950739212,3.865,2742.3,2741.4,3.0393]
[1645950739413,3.865,2742.3,2741.2,2.3365]
[1645950739611,3.865,2742.3,2741.5,1.14483109]
[1645950739915,0.365,2742.3,2741.5,0.68893109]
[1645950740245,3.865,2742.3,2741.5,0.68893109]
[1645950741145,3.865,2742.3,2741.8,0.00552757]
[1645950741348,11.2858,2742.6,2741.8,0.00552757]
[1645950741349,0.365,2742.4,2741.8,0.00552757]
[1645950741552,3.865,2742.3,2741.8,0.00552757]
[1645950741750,0.365,2742.3,2741.8,0.00552757]
[1645950742050,4.76841818,2742.6,2741.5,0.68893109]
[1645950742051,3.6458,2742.6,2741.5,0.68893109]
[1645950742251,0.365,2742.5,2741.9,0.00455566]
[1645950742453,0.365,2742.3,2741.9,0.00455566]
[1645950742649,0.365,2742.3,2741.5,0.23758675]
[1645950742650,2.5,2742.2,2741.5,0.23758675]
[1645950742849,6.365,2742.2,2741.2,1.1726]
[1645950743058,6.365,2742.2,2741.1,4.5521]
[1645950743251,3.5,2742.1,2741.1,4.2521]
[1645950743752,3.5,2742.1,2741.1,1.3]
[1645950744003,1.45142107,2742.0,2740.9,0.25]
[1645950744205,0.365,2742.0,2740.9,0.25]
[1645950744502,1.1448,2742.2,2740.9,0.25]
[1645950744903,1.1448,2742.2,2741.0,0.896]
[1645950745206,1.1448,2742.2,2741.5,1.07012404]
[1645950745608,5.361,2742.3,2741.5,1.07012404]
[1645950745802,1.861,2742.3,2741.5,0.61422404]
[1645950746002,3.1906,2742.4,2741.5,0.61422404]
[1645950746402,3.5556,2742.4,2741.5,0.61422404]
[1645950746609,3.5,2742.5,2741.5,0.61422404]
[1645950747006,3.5,2742.5,2741.8,0.00551619]
[1645950747407,3.865,2742.5,2741.8,0.00551619]
[1645950747608,2.9983,2742.6,2742.1,1.01926543]
[1645950747859,6.15970577,2742.7,2742.1,1.01926543]
[1645950747860,3.41520387,2742.7,2742.1,1.01926543]
[1645950748164,1.8427,2743.1,2742.1,1.31926543]
[1645950748360,0.00590449,2742.7,2742.1,1.31926543]
[1645950749160,1.8427,2743.1,2742.1,1.31926543]
[1645950749560,0.00590456,2742.7,2742.1,1.31926543]
[1645950750362,1.8427,2743.1,2742.1,1.31926543]
[1645950750562,0.00590456,2742.7,2742.1,1.31926543]
[1645950751607,1.8427,2743.1,2742.1,1.31926543]
[1645950751806,0.00590456,2742.7,2742.1,1.31926543]
[1645950752605,0.00590456,2742.7,2742.6,1.25577457]
[1645950752905,0.1458,2743.3,2742.6,1.25577457]
[1645950753109,0.00590456,2742.7,2742.6,1.25577457]
[1645950753909,5.04236175,2743.5,2742.6,1.25577457]
[1645950754308,0.00590467,2742.8,2742.6,1.25577457]
[1645950755359,0.365,2743.4,2742.6,1.25577457]
[1645950755560,0.00590464,2742.8,2742.6,1.25577457]
[1645950755758,0.00590464,2742.8,2742.5,0.3]
[1645950755962,0.00590464,2742.8,2742.1,0.3]
[1645950756358,3.865,2743.4,2742.1,0.3]
[1645950756560,0.00590464,2742.7,2742.2,0.1458]
[1645950756761,0.00590464,2742.7,2742.3,1.39293177]
[1645950757164,0.00590464,2742.7,2742.3,2.05793177]
[1645950757566,0.1458,2743.5,2742.3,2.05793177]
[1645950757761,1.54026847,2743.4,2742.3,2.05793177]
[1645950757962,0.00590472,2742.7,2742.3,0.665]
[1645950758362,0.00590472,2742.7,2742.4,1.41412362]
[1645950758863,1.1473,2743.6,2742.4,1.41412362]
[1645950759107,0.00590473,2742.7,2742.4,1.41412362]
[1645950760104,3.5,2743.5,2742.4,1.41412362]
[1645950760406,0.00590473,2742.7,2742.4,1.41412362]
[1645950761306,1.09518152,2743.5,2742.4,1.41412362]
[1645950761509,0.00590473,2742.7,2742.4,1.41412362]
[1645950762312,4.57470164,2743.5,2742.4,1.41412362]
[1645950762514,1.54024513,2743.4,2742.4,1.41412362]
[1645950762763,0.00590473,2742.7,2742.4,1.41412362]
[1645950763552,1.07470164,2743.5,2742.4,1.41412362]
[1645950763758,1.540235,2743.4,2742.4,1.41412362]
[1645950765054,0.00423242,2743.2,2742.4,1.41412362]
[1645950765253,0.00423242,2743.2,2742.4,1.71412362]
[1645950765957,3.5,2743.4,2742.4,1.71412362]
[1645950766159,1.54028031,2743.3,2742.4,1.71412362]
[1645950766362,0.00590394,2743.2,2742.7,0.00558819]
[1645950766604,1.54028031,2743.1,2742.7,0.00558819]
[1645950767307,1.54028031,2743.1,2742.4,1.41412362]
[1645950767506,0.00590409,2743.2,2742.8,0.00558798]
[1645950767707,1.54029817,2743.1,2742.8,0.00558798]
[1645950767905,0.00590409,2743.2,2742.8,0.00558798]
[1645950768508,0.1458,2743.5,2742.4,1.71412362]
[1645950768710,0.00590425,2743.2,2742.9,0.00558778]
[1645950769606,4.6473,2743.6,2742.4,1.71412362]
[1645950769811,0.00590432,2743.2,2742.9,0.00558768]
[1645950770861,2.49295265,2743.6,2742.5,0.1458]
[1645950771061,0.00590432,2743.2,2742.9,0.00558768]
[1645950772065,1.1473,2743.6,2742.5,0.1458]
[1645950772265,0.00590432,2743.2,2743.1,1.22971196]
[1645950773263,0.00962837,2743.8,2743.1,1.22971196]
[1645950773465,0.00962837,2743.8,2743.2,3.5]
[1645950773466,0.00590437,2743.3,2743.2,3.5]
[1645950773666,0.00590437,2743.3,2743.2,5.031]
[1645950773866,0.00590437,2743.3,2743.2,1.531]
[1645950774322,0.00590437,2743.3,2743.2,0.531]
[1645950774518,0.00962837,2743.8,2743.2,0.531]
[1645950774720,0.00423053,2743.4,2743.2,0.531]
[1645950775418,0.00423053,2743.4,2743.3,3.5]
[1645950775618,0.00962837,2743.8,2743.3,0.531]
[1645950775817,0.00962837,2743.8,2743.3,1.831]
[1645950776017,0.00423053,2743.4,2743.3,0.831]
[1645950776220,0.00423053,2743.4,2743.3,4.331]
[1645950776419,0.00962837,2743.8,2743.4,7.0]
[1645950776621,0.00962837,2743.8,2743.6,1.8219845]
[1645950776826,0.00962837,2743.8,2743.6,2.1219845]
[1645950777623,0.00962837,2743.8,2743.7,1.06990818]
[1645950777852,0.00962837,2743.8,2743.7,1.36990818]
[1645950778657,0.00962837,2743.8,2743.7,4.86990818]
[1645950779055,0.00962837,2743.8,2743.7,2.36990818]
[1645950779257,0.00962837,2743.8,2743.7,1.36990818]
[1645950780260,0.00962837,2743.8,2743.7,1.06990818]
[1645950782807,0.00962837,2743.8,2743.6,0.3]
[1645950783207,0.00962837,2743.8,2743.4,1.92143337]
[1645950783607,0.00962837,2743.8,2743.4,2.22143337]
[1645950784007,0.00962837,2743.8,2743.4,0.09947337]
[1645950784210,0.00590633,2743.7,2743.4,0.0008]
[1645950785349,0.00962837,2743.8,2743.4,0.0008]
[1645950785555,0.00590636,2743.7,2743.4,0.0008]
[1645950786553,1.61774083,2744.2,2743.4,0.0008]
[1645950786758,0.00590636,2743.7,2743.4,0.0008]
[1645950787556,0.02362191,2744.1,2743.4,0.0008]
[1645950787757,1.61774083,2744.2,2743.4,1.36205699]
[1645950787957,0.00590636,2743.7,2743.4,1.36205699]
[1645950788157,0.00590636,2743.7,2743.4,0.0008]
[1645950789209,0.00590636,2743.7,2743.4,1.03746879]
[1645950790017,0.365,2744.1,2743.4,0.0008]
[1645950790312,0.00590636,2743.7,2743.4,0.0008]
[1645950791215,0.365,2744.0,2743.4,0.0008]
[1645950791414,0.00590636,2743.7,2743.4,0.0008]
[1645950792515,0.365,2743.9,2743.4,0.0008]
[1645950792766,0.00590636,2743.7,2743.4,0.0008]
[1645950793757,1.1683,2744.2,2743.4,0.0008]
[1645950793959,0.00590636,2743.7,2743.4,0.0008]
[1645950794156,0.00590636,2743.7,2743.4,3.5008]
[1645950794356,0.00590636,2743.7,2743.5,1.43170427]
[1645950794556,0.00590636,2743.7,2743.5,4.93170427]
[1645950794755,0.00590636,2743.7,2743.5,1.43170427]
[1645950794956,1.92596,2744.3,2743.6,3.5]
[1645950795157,0.00590633,2743.7,2743.6,4.031]
[1645950795361,0.00590633,2743.7,2743.6,5.331]
[1645950795559,0.00590633,2743.7,2743.6,1.831]
[1645950795759,0.00590633,2743.7,2743.6,0.831]
[1645950795959,0.00590633,2743.7,2743.6,4.331]
[1645950796160,0.00096,2744.5,2743.6,1.831]
[1645950796361,0.0059063,2743.8,2743.6,4.331]
[1645950796632,0.0059063,2743.8,2743.7,1.22376917]
[1645950797231,0.00096,2744.5,2743.7,1.22376917]
[1645950797432,2.64027808,2744.5,2743.7,1.22376917]
[1645950797635,0.00590624,2743.9,2743.7,1.22376917]
[1645950798434,1.1005723,2744.5,2743.7,1.22376917]
[1645950798635,0.00590621,2743.9,2743.7,1.22376917]
[1645950799235,0.00590621,2743.9,2743.6,1.6]
[1645950799435,0.00590621,2743.9,2743.5,0.3]
[1645950799636,0.00096,2744.5,2743.4,3.8008]
[1645950799836,0.00096,2744.5,2743.6,0.91108]
[1645950800039,0.00590624,2743.9,2743.7,3.865]
[1645950800265,0.00096,2744.6,2744.0,5.0]
[1645950800455,0.05921621,2744.7,2744.1,3.5]
[1645950800855,0.05921621,2744.7,2744.1,4.8]
[1645950801255,0.05921621,2744.7,2744.1,2.74186]
[1645950801658,0.05921621,2744.7,2744.1,5.24186]
[1645950801959,0.05921621,2744.7,2744.1,2.74186]
[1645950802661,0.05921621,2744.7,2744.5,1.15812201]
[1645950803460,0.06342036,2744.7,2744.5,1.15812201]
[1645950804106,0.06342036,2744.7,2744.1,3.10686]
[1645950804506,0.05921621,2744.7,2744.3,0.365]
[1645950804707,0.00420414,2744.5,2744.4,0.531]
[1645950805108,0.00420414,2744.5,2744.4,1.17596153]
[1645950805306,0.00420414,2744.5,2744.3,0.3]
[1645950805510,0.00420414,2744.5,2744.1,1.44186]
[1645950805511,0.00420414,2744.5,2744.1,2.74186]
[1645950805712,0.05921621,2744.7,2744.1,1.74186]
[1645950805920,0.00420414,2744.5,2744.1,2.74186]
[1645950806113,0.00420414,2744.5,2744.2,1.2758294]
[1645950806317,0.00420414,2744.5,2744.3,1.35066]
[1645950806514,0.05921621,2744.7,2744.6,0.365]
[1645950806714,0.05921621,2744.7,2744.2,3.1216394]
[1645950806916,1.621e-05,2744.7,2744.3,0.97808549]
[1645950807116,1.621e-05,2744.7,2744.4,0.365]
[1645950807770,1.621e-05,2744.7,2744.4,0.665]
[1645950808362,0.00592429,2744.7,2744.4,0.665]
[1645950808565,0.00592429,2744.7,2744.5,1.49505505]
[1645950808761,0.00592429,2744.7,2744.5,1.79505505]
[1645950809263,1.621e-05,2744.7,2744.5,1.79505505]
[1645950809462,1.621e-05,2744.7,2744.6,4.41078]
[1645950809667,0.00592426,2744.7,2744.6,1.98011791]
[1645950809866,0.00592426,2744.7,2744.6,2.74178]
[1645950810066,0.00592426,2744.7,2744.6,1.74178]
[1645950810267,0.00592426,2744.7,2744.6,2.74178]
[1645950810467,1.621e-05,2744.7,2744.6,1.74178]
[1645950810667,1.621e-05,2744.7,2744.6,2.74178]
[1645950810867,1.621e-05,2744.7,2744.6,2.10678]
[1645950811070,1.621e-05,2744.7,2744.6,2.74178]
[1645950811267,1.621e-05,2744.7,2744.6,1.74178]
[1645950811506,1.621e-05,2744.7,2744.6,2.74178]
[1645950811711,1.621e-05,2744.7,2744.6,1.74178]
[1645950811914,1.621e-05,2744.7,2744.6,2.74178]
[1645950812112,1.621e-05,2744.7,2744.6,3.82827771]
[1645950812312,1.621e-05,2744.7,2744.6,4.19327771]
[1645950812711,1.621e-05,2744.7,2744.6,2.91749771]
[1645950813116,1.621e-05,2744.7,2744.6,1.196]
[1645950813314,1.621e-05,2744.7,2744.6,1.831]
[1645950813513,1.621e-05,2744.7,2744.6,0.831]
[1645950813718,1.621e-05,2744.7,2744.6,1.196]
[1645950814513,1.621e-05,2744.7,2744.6,2.22163547]
[1645950815270,1.621e-05,2744.7,2744.6,3.13231547]
[1645950815459,1.621e-05,2744.7,2744.6,2.10668]
[1645950815861,1.621e-05,2744.7,2744.6,1.74168]
[1645950818067,1.621e-05,2744.7,2744.6,5.60668]
[1645950818267,1.621e-05,2744.7,2744.6,6.81191308]
[1645950818468,1.621e-05,2744.7,2744.6,2.94691308]
[1645950818771,1.621e-05,2744.7,2744.6,0.3]
[1645950819001,1.621e-05,2744.7,2744.6,1.0]
[1645950819404,1.621e-05,2744.7,2744.5,4.33209]
[1645950819703,1.621e-05,2744.7,2744.5,4.03209]
[1645950820305,0.00592426,2744.7,2744.5,4.03209]
[1645950821308,1.621e-05,2744.7,2744.6,1.22913864]
[1645950821506,0.00592426,2744.7,2744.5,4.18366614]
[1645950821712,0.00592426,2744.7,2744.6,3.5]
[1645950821910,0.00592426,2744.7,2744.6,5.30667]
[1645950822111,0.02362809,2745.2,2744.8,0.365]
[1645950822311,0.02362809,2745.2,2745.0,1.42826847]
[1645950822517,3.5872,2746.7,2745.0,1.42826847]
[1645950822518,2.12203998,2747.1,2745.3,7.365]
[1645950822829,1.52481726,2747.6,2745.3,7.365]
[1645950822830,0.1,2747.9,2746.6,0.01270121]
[1645950823008,5.8636642,2748.2,2746.9,11.633]
[1645950823204,3.56844626,2748.2,2747.3,0.01242337]
[1645950823404,1.26709587,2747.8,2747.4,0.531]
[1645950823703,3.4156254,2748.2,2747.4,0.531]
[1645950824105,0.0041777,2747.9,2747.4,0.531]
[1645950824503,1.24947872,2747.6,2747.4,0.531]
[1645950824902,0.1454,2748.1,2747.4,0.531]
[1645950825101,3.5,2748.1,2747.4,0.531]
[1645950825304,3.5,2748.1,2747.2,0.531]
[1645950825305,0.0041777,2747.6,2747.2,0.531]
[1645950825503,0.0041777,2747.6,2746.5,0.18156198]
[1645950825504,5.0,2747.4,2746.5,0.18156198]
[1645950825703,0.0237796,2747.6,2745.9,0.5]
[1645950825704,9.865,2747.3,2745.9,0.5]
[1645950825905,9.865,2747.3,2746.0,3.5]
[1645950825906,0.365,2747.1,2746.0,3.5]
[1645950826107,0.37794849,2746.9,2745.6,0.1456]
[1645950826304,0.37794849,2746.9,2745.4,13.394]
[1645950826305,0.365,2746.7,2745.4,13.394]
[1645950826522,0.365,2746.5,2745.4,12.863]
[1645950826721,0.00096,2746.4,2745.4,12.863]
[1645950826921,1.07521101,2745.9,2745.4,12.863]
[1645950827121,1.07521101,2745.9,2745.4,12.613]
[1645950827323,0.00096,2746.2,2745.4,12.613]
[1645950827624,0.0041777,2745.8,2745.4,12.613]
[1645950828425,1.54882593,2745.7,2745.4,12.613]